fUST/lending_fUST_20240912
["ID","MTS","AMOUNT","RATE_DAILY","PERIOD"]
[337779162,1726110644703,-500.0,0.00022739,2]
[337779163,1726110644712,-500.0,0.00022739,2]
[337779164,1726110644722,-2206.46,0.00022739,2]
[337779165,1726110644732,-1887.42,0.00022739,2]
[337779166,1726110644742,-151.0,0.00022739,7]
[337779167,1726110644752,-500.0,0.00022739,2]
[337779168,1726110644762,-151.0,0.00022739,7]
[337779169,1726110644771,-826.81,0.00022739,2]
[337779170,1726110644781,-500.0,0.00022739,2]
[337779171,1726110644791,-1630.56,0.00022739,2]
[337779172,1726110644801,-601.13,0.00022739,2]
[337779173,1726110644811,-1434.59,0.00022739,2]
[337779174,1726110644826,-503.55,0.00022739,2]
[337779175,1726110644837,-500.0,0.00022739,2]
[337779176,1726110644847,-579.02,0.00022739,2]
[337779177,1726110644857,-1077.76,0.00022739,2]
[337779178,1726110644868,-550.97,0.00022739,2]
[337779179,1726110644878,-1473.5,0.00022739,2]
[337779180,1726110644888,-866.22,0.00022739,2]
[337779181,1726110644899,-1024.41,0.00022739,2]
[337779182,1726110644909,-695.26,0.00022739,2]
[337779183,1726110644919,-615.31,0.00022739,2]
[337779184,1726110644929,-500.0,0.00022739,2]
[337779185,1726110644939,-723.52,0.00022739,2]
[337779186,1726110644949,-151.0,0.00022739,7]
[337779187,1726110644959,-151.0,0.00022739,7]
[337779188,1726110644969,-500.0,0.00022739,2]
[337779189,1726110644979,-500.0,0.00022739,2]
[337779190,1726110644989,-1763.22,0.00022739,2]
[337779191,1726110644999,-500.0,0.00022739,2]
[337779192,1726110645009,-500.0,0.00022739,2]
[337779193,1726110645019,-811.05,0.00022739,2]
[337779194,1726110645029,-516.15,0.00022739,2]
[337779195,1726110645039,-1353.58,0.00022739,2]
[337779196,1726110645049,-151.0,0.00022739,7]
[337779197,1726110645060,-787.2,0.00022739,2]
[337779198,1726110645070,-151.0,0.00022739,7]
[337779199,1726110645080,-500.0,0.00022739,2]
[337779200,1726110645091,-2658.09,0.00022739,2]
[337779201,1726110645101,-1097.47,0.00022739,2]
[337779202,1726110645111,-587.11,0.00022739,2]
[337779203,1726110645121,-5312.83,0.00022739,2]
[337779204,1726110645130,-500.0,0.00022739,2]
[337779205,1726110645140,-3511.29,0.00022739,2]
[337779206,1726110645151,-1006.94,0.00022739,2]
[337779207,1726110645162,-500.0,0.00022739,2]
[337779208,1726110645171,-500.0,0.00022739,2]
[337779209,1726110645184,-1098.11,0.00022739,2]
[337779210,1726110645201,-169.88064648,0.00022739,2]
[337779211,1726110645211,-8859.87,0.00022739,2]
[337779212,1726110645222,-500.0,0.00022739,2]
[337779213,1726110645232,-2654.61,0.00022739,2]
[337779214,1726110645243,-851.66,0.00022739,2]
[337779215,1726110645254,-1005.36,0.00022739,2]
[337779216,1726110645263,-840.92,0.00022739,2]
[337779217,1726110645274,-151.0,0.00022739,7]
[337779218,1726110645285,-1191.59,0.00022739,2]
[337779219,1726110645296,-150.112233,0.000228,3]
[337779220,1726110645306,-176.376512,0.00022863,2]
[337779221,1726110645316,-500.0,0.00022931,2]
[337779222,1726110645328,-500.0,0.00022931,2]
[337779223,1726110645337,-500.0,0.00022931,2]
[337779224,1726110645347,-500.0,0.00022931,2]
[337779225,1726110645357,-500.0,0.00022949,2]
[337779226,1726110645367,-24900.0,0.0002295,2]
[337779227,1726110645377,-150.112233,0.00023,5]
[337779228,1726110645387,-500.0,0.00023013,2]
[337779229,1726110645397,-500.0,0.00023013,2]
[337779230,1726110645407,-500.0,0.00023013,2]
[337779231,1726110645418,-902.71,0.00023013,2]
[337779232,1726110645428,-528.89,0.00023013,2]
[337779233,1726110645438,-24239.14,0.00023013,2]
[337779234,1726110645449,-488.75707851,0.00023013,2]
[337779235,1726110645459,-560.51,0.00023013,2]
[337779236,1726110645469,-500.0,0.00023013,2]
[337779237,1726110645479,-500.0,0.00023013,2]
[337779238,1726110645489,-500.0,0.00023013,2]
[337779239,1726110645499,-1456.06,0.00023013,2]
[337779240,1726110645509,-500.0,0.00023013,2]
[337779241,1726110645519,-1214.41,0.00023013,2]
[337779242,1726110645529,-500.0,0.00023013,2]
[337779243,1726110645539,-1839.03,0.00023013,2]
[337779244,1726110645548,-539.26,0.00023013,2]
[337779245,1726110645558,-676.41,0.00023013,2]
[337779246,1726110645568,-524.68,0.00023013,2]
[337779247,1726110645578,-500.0,0.00023013,2]
[337779248,1726110645588,-524.33,0.00023013,2]
[337779249,1726110645598,-500.0,0.00023013,2]
[337779250,1726110645608,-500.0,0.00023013,2]
[337779251,1726110645618,-509.42,0.00023013,2]
[337779252,1726110645627,-2077.23,0.00023013,2]
[337779253,1726110645637,-500.0,0.00023013,2]
[337779254,1726110645646,-2654.77,0.00023013,2]
[337779255,1726110645656,-500.0,0.00023013,2]
[337779256,1726110645666,-2093.14,0.00023013,2]
[337779257,1726110645676,-1876.17,0.00023013,2]
[337779258,1726110645686,-394.69060348,0.00023013,2]
[337779259,1726110645696,-978.38,0.00023013,2]
[337779260,1726110645706,-500.0,0.00023013,2]
[337779261,1726110645716,-500.0,0.00023013,2]
[337779262,1726110645726,-500.0,0.00023013,2]
[337779263,1726110645737,-929.78,0.00023013,2]
[337779264,1726110645747,-502.5,0.00023013,2]
[337779265,1726110645756,-500.0,0.00023013,2]
[337779266,1726110645767,-500.0,0.00023013,2]
[337779267,1726110645776,-2124.78,0.00023013,2]
[337779268,1726110645786,-500.0,0.00023013,2]
[337779269,1726110645797,-500.0,0.00023013,2]
[337779270,1726110645808,-1293.04,0.00023013,2]
[337779271,1726110645817,-500.0,0.00023013,2]
[337779272,1726110645828,-500.0,0.00023013,2]
[337779273,1726110645837,-954.25,0.00023013,2]
[337779274,1726110645847,-500.0,0.00023013,2]
[337779275,1726110645857,-830.51,0.00023013,2]
[337779276,1726110645866,-1341.75,0.00023013,2]
[337779277,1726110645876,-1196.39,0.00023013,2]
[337779278,1726110645886,-23803.51,0.00023013,2]
[337779279,1726110645896,-500.0,0.00023013,2]
[337779280,1726110645906,-865.12,0.00023013,2]
[337779281,1726110645915,-516.71,0.00023013,2]
[337779282,1726110645925,-1006.07,0.00023013,2]
[337779283,1726110645934,-151.0,0.00023013,7]
[337779284,1726110645944,-575.77,0.00023013,2]
[337779285,1726110645953,-500.0,0.00023013,2]
[337779286,1726110645962,-500.0,0.00023013,2]
[337779287,1726110645972,-500.0,0.00023013,2]
[337779288,1726110645981,-500.0,0.00023013,2]
[337779289,1726110645990,-500.0,0.00023013,2]
[337779290,1726110646000,-1662.44,0.00023013,2]
[337779291,1726110646009,-1224.43,0.00023013,2]
[337779292,1726110646018,-655.02,0.00023013,2]
[337779293,1726110646028,-500.0,0.00023013,2]
[337779294,1726110646038,-500.0,0.00023013,2]
[337779295,1726110646048,-1329.74,0.00023013,2]
[337779296,1726110646058,-500.0,0.00023013,2]
[337779297,1726110646068,-500.0,0.00023013,2]
[337779298,1726110646078,-500.0,0.00023013,2]
[337779299,1726110646088,-500.0,0.00023013,2]
[337779300,1726110646097,-1635.03,0.00023013,2]
[337779301,1726110646107,-500.0,0.00023013,2]
[337779302,1726110646117,-2059.73,0.00023013,2]
[337779303,1726110646127,-500.0,0.00023013,2]
[337779304,1726110646138,-617.41,0.00023013,2]
[337779305,1726110646148,-1579.95,0.00023013,2]
[337779306,1726110646157,-200.0,0.00023013,2]
[337779307,1726110646167,-1448.1,0.00023013,2]
[337779308,1726110646176,-500.0,0.00023013,2]
[337779309,1726110646187,-500.0,0.00023013,2]
[337779310,1726110646197,-561.15,0.00023013,2]
[337779311,1726110646207,-722.86,0.00023013,2]
[337779312,1726110646216,-500.0,0.00023013,2]
[337779313,1726110646226,-991.97,0.00023013,2]
[337779314,1726110646235,-1064.11,0.00023013,2]
[337779315,1726110646245,-500.0,0.00023013,2]
[337779316,1726110646254,-151.0,0.00023013,7]
[337779317,1726110646265,-1195.82,0.00023013,2]
[337779318,1726110646275,-151.0,0.00023013,7]
[337779319,1726110646284,-151.0,0.00023013,7]
[337779320,1726110646294,-2550.64,0.00023013,2]
[337779321,1726110646304,-500.0,0.00023013,2]
[337779322,1726110646313,-1315.99,0.00023013,2]
[337779323,1726110646324,-1448.08,0.00023013,2]
[337779324,1726110646334,-500.0,0.00023013,2]
[337779325,1726110646344,-500.0,0.00023013,2]
[337779326,1726110646354,-500.0,0.00023013,2]
[337779327,1726110646364,-500.0,0.00023013,2]
[337779328,1726110646374,-692.76,0.00023013,2]
[337779329,1726110646383,-500.0,0.00023013,2]
[337779330,1726110646393,-670.3,0.00023013,2]
[337779331,1726110646403,-151.0,0.00023013,7]
[337779332,1726110646413,-151.0,0.00023013,7]
[337779333,1726110646423,-500.0,0.00023013,2]
[337779334,1726110646432,-1015.36,0.00023013,2]
[337779335,1726110646443,-151.0,0.00023013,7]
[337779336,1726110646453,-151.0,0.00023013,7]
[337779337,1726110646464,-557.02,0.00023013,2]
[337779338,1726110646477,-531.49,0.00023013,2]
[337779339,1726110646488,-1500.59,0.00023013,2]
[337779340,1726110646498,-580.32892217,0.00023013,2]
[337779341,1726110646508,-266.17542386,0.00023013,2]
[337779346,1726110919518,192.4334928,0.00019539,2]
[337779347,1726111005957,506.14162097,0.00028,120]
[337779349,1726111267083,718.907707,0.00019541,2]
[337779350,1726111302071,23311.07226775,0.00019524,2]
[337779351,1726111388698,5000.0,0.00026,60]
[337779352,1726111400585,5067.05,0.00019,2]
[337779353,1726111539144,-179.174615,0.00019224,2]
[337779354,1726111539166,-443.35325745,0.00019424,2]
[337779355,1726111549238,-2220.44793521,0.00019424,2]
[337779356,1726111549265,-205.09207512,0.00019441,2]
[337779357,1726111610149,-44.90792488,0.00019441,2]
[337779358,1726111610173,-250.0,0.00019494,2]
[337779359,1726111610195,-235.00520813,0.00019524,2]
[337779360,1726111610216,-768.72627159,0.00019524,2]
[337779361,1726111652090,-820.20146066,0.00019524,2]
[337779362,1726111652115,-250.0,0.00019548,2]
[337779363,1726111652137,-250.0,0.00019601,2]
[337779364,1726111652159,-81.38383513,0.00019654,2]
[337779367,1726111750132,-1578.4226234,0.00019388,2]
[337779368,1726111756149,-168.61616487,0.00019654,2]
[337779369,1726111756175,-71.48383513,0.00019708,2]
[337779370,1726111761126,-178.51616487,0.00019708,2]
[337779371,1726111761152,-250.0,0.00019761,2]
[337779372,1726111761174,-250.0,0.00019814,2]
[337779373,1726111761198,-250.0,0.00019868,2]
[337779374,1726111761223,-250.0,0.00019921,2]
[337779375,1726111761247,-250.0,0.00019974,2]
[337779376,1726111761271,-300.0,0.00019989,2]
[337779377,1726111761293,-23379.80722348,0.0001999,2]
[337779378,1726111761316,-17720.3892664,0.0002,2]
[337779379,1726111761339,-10088.14779636,0.0002,2]
[337779380,1726111761360,-4305.6605979,0.0002,2]
[337779381,1726111761382,-20955.48548542,0.0002,2]
[337779382,1726111761406,-181.80138408,0.0002,2]
[337779383,1726111761432,-250.0,0.00020028,2]
[337779384,1726111761459,-250.0,0.00020081,2]
[337779385,1726111761481,-250.0,0.00020134,2]
[337779386,1726111761504,-250.0,0.00020188,2]
[337779387,1726111761531,-172.965029,0.00020209,2]
[337779388,1726111761553,-718.907707,0.00020226,2]
[337779389,1726111761577,-250.0,0.00020241,2]
[337779390,1726111761599,-1000.000001,0.00020247,2]
[337779391,1726111761624,-250.0,0.00020294,2]
[337779392,1726111761647,-2000.0,0.000203,2]
[337779393,1726111761670,-250.0,0.00020347,2]
[337779394,1726111761693,-10007.1916384,0.00020367,3]
[337779395,1726111761712,-16651.31433682,0.00020377,2]
[337779396,1726111761734,-250.0,0.00020401,2]
[337779397,1726111761758,-250.0,0.00020454,2]
[337779398,1726111761779,-1199.999998,0.000205,2]
[337779399,1726111761799,-582.25460922,0.0002066,7]
[337779400,1726111761819,-504.84477686,0.00020722,2]
[337779401,1726111761838,-649.70415013,0.00020783,2]
[337779402,1726111761859,-35540.75350374,0.00020793,2]
[337779403,1726111761880,-251.0,0.00020822,2]
[337779404,1726111761900,-718.907707,0.0002091,2]
[337779405,1726111761921,-504.84477685,0.00021269,2]
[337779406,1726111761950,-504.84477685,0.00021816,2]
[337779407,1726111761971,-10007.1916384,0.0002189,3]
[337779408,1726111761992,-153.34712413,0.00021895,2]
[337779409,1726111762012,-500.0,0.00021895,2]
[337779410,1726111762034,-500.0,0.00021895,2]
[337779411,1726111762056,-500.0,0.00021895,2]
[337779412,1726111762077,-500.0,0.00021895,2]
[337779413,1726111762098,-500.0,0.00021895,2]
[337779414,1726111762121,-500.0,0.00021895,2]
[337779415,1726111762146,-500.0,0.00021895,2]
[337779416,1726111762176,-500.0,0.00021895,2]
[337779417,1726111762199,-423.85091303,0.00021895,2]
[337779418,1726111762222,-50035.958192,0.00021897,3]
[337779419,1726111762242,-150.112233,0.000219,2]
[337779420,1726111762263,-237509.242358,0.00021907,3]
[337779421,1726111762287,-77939.68838532,0.00021907,3]
[337779422,1726111768110,-521.1,0.00020367,3]
[337779423,1726111770078,-32139.41963668,0.00021907,3]
[337779424,1726111770100,-2000.0,0.00021916,2]
[337779425,1726111770121,-2000.0,0.00021916,2]
[337779426,1726111770142,-2000.0,0.00021916,2]
[337779427,1726111770163,-2000.0,0.00021916,2]
[337779428,1726111770184,-1114.63979819,0.00021916,2]
[337779429,1726111770207,-381.09323933,0.00021916,2]
[337779430,1726111770228,-215.20004095,0.00021916,2]
[337779431,1726111770250,-500.0,0.00021916,2]
[337779432,1726111770276,-225.07372055,0.00021917,2]
[337779433,1726111770296,-500.0,0.00021917,2]
[337779434,1726111770316,-500.0,0.00021917,2]
[337779435,1726111770337,-500.0,0.00021917,2]
[337779436,1726111770357,-500.0,0.00021917,2]
[337779437,1726111770378,-500.0,0.00021917,2]
[337779438,1726111770398,-500.0,0.00021917,2]
[337779439,1726111770420,-500.0,0.00021917,2]
[337779440,1726111770443,-500.0,0.00021917,2]
[337779441,1726111770464,-500.0,0.00021917,2]
[337779442,1726111770486,-500.0,0.00021917,2]
[337779443,1726111770506,-522.25911458,0.00021917,2]
[337779444,1726111770529,-575.2,0.00021917,2]
[337779445,1726111770550,-500.0,0.00021917,2]
[337779446,1726111770572,-1044.98,0.00021917,2]
[337779447,1726111770840,-556.65990676,0.00021917,2]
[337779448,1726111770861,-725.95,0.00021917,2]
[337779449,1726111770882,-500.0,0.00021917,2]
[337779450,1726111770905,-557.22052192,0.00021917,2]
[337779451,1726111770928,-500.0,0.00021917,2]
[337779452,1726111770950,-334.09538548,0.00021917,2]
[337779453,1726111770972,-500.0,0.00021917,2]
[337779454,1726111770993,-500.0,0.00021917,2]
[337779455,1726111771016,-500.0,0.00021917,2]
[337779456,1726111771036,-500.0,0.00021917,2]
[337779457,1726111771057,-500.0,0.00021917,2]
[337779458,1726111771078,-500.0,0.00021917,2]
[337779459,1726111771098,-500.0,0.00021917,2]
[337779460,1726111771119,-500.0,0.00021917,2]
[337779461,1726111771139,-500.0,0.00021917,2]
[337779462,1726111771159,-500.55960004,0.00021917,2]
[337779463,1726111771180,-506.64689496,0.00021917,2]
[337779464,1726111771201,-500.0,0.00021917,2]
[337779465,1726111771222,-500.0,0.00021917,2]
[337779466,1726111771243,-500.0,0.00021917,2]
[337779467,1726111771263,-503.55309976,0.00021917,2]
[337779468,1726111771284,-500.0,0.00021917,2]
[337779469,1726111771310,-500.0,0.00021917,2]
[337779470,1726111771332,-498.22107913,0.00021917,2]
[337779471,1726111771354,-500.0,0.00021917,2]
[337779472,1726111771376,-500.0,0.00021917,2]
[337779473,1726111771397,-500.0,0.00021917,2]
[337779474,1726111771418,-500.0,0.00021917,2]
[337779475,1726111771441,-500.0,0.00021917,2]
[337779476,1726111771463,-500.0,0.00021917,2]
[337779477,1726111771488,-500.0,0.00021917,2]
[337779478,1726111771511,-500.0,0.00021917,2]
[337779479,1726111771535,-500.0,0.00021917,2]
[337779480,1726111771556,-500.0,0.00021917,2]
[337779481,1726111771577,-500.0,0.00021917,2]
[337779482,1726111771599,-500.0,0.00021917,2]
[337779483,1726111771624,-500.0,0.00021917,2]
[337779484,1726111771645,-434.53322764,0.00021917,2]
[337779485,1726111771666,-199.85149989,0.00021917,2]
[337779486,1726111771687,-500.0,0.00021917,2]
[337779487,1726111771708,-500.0,0.00021917,2]
[337779488,1726111771730,-504.67368884,0.00021917,2]
[337779489,1726111771752,-500.0,0.00021917,2]
[337779490,1726111771773,-500.0,0.00021917,2]
[337779491,1726111771794,-2177.72,0.00021917,2]
[337779492,1726111771815,-500.0,0.00021917,2]
[337779493,1726111771835,-500.0,0.00021917,2]
[337779494,1726111771856,-503.44,0.00021917,2]
[337779495,1726111771877,-500.0,0.00021917,2]
[337779496,1726111771899,-500.0,0.00021917,2]
[337779497,1726111771921,-500.0,0.00021917,2]
[337779498,1726111771944,-500.0,0.00021917,2]
[337779499,1726111771964,-500.0,0.00021917,2]
[337779500,1726111771985,-500.0,0.00021917,2]
[337779501,1726111772007,-500.0,0.00021917,2]
[337779502,1726111772029,-529.31522746,0.00021917,2]
[337779503,1726111772051,-500.95370409,0.00021917,2]
[337779504,1726111772073,-500.0,0.00021917,2]
[337779505,1726111772095,-500.0,0.00021917,2]
[337779506,1726111772117,-500.0,0.00021917,2]
[337779507,1726111772139,-500.0,0.00021917,2]
[337779508,1726111772161,-500.0,0.00021917,2]
[337779509,1726111772182,-500.93064931,0.00021917,2]
[337779510,1726111772203,-837.09,0.00021917,2]
[337779511,1726111772224,-500.0,0.00021917,2]
[337779512,1726111772246,-500.0,0.00021917,2]
[337779513,1726111772267,-500.0,0.00021917,2]
[337779514,1726111772287,-500.0,0.00021917,2]
[337779515,1726111772308,-500.0,0.00021917,2]
[337779516,1726111772329,-500.0,0.00021917,2]
[337779517,1726111772350,-500.28996128,0.00021917,2]
[337779518,1726111772372,-500.0,0.00021917,2]
[337779519,1726111772394,-500.0,0.00021917,2]
[337779520,1726111772416,-500.0,0.00021917,2]
[337779521,1726111772438,-584.63591562,0.00021917,2]
[337779522,1726111772471,-500.0,0.00021917,2]
[337779523,1726111772492,-500.0,0.00021917,2]
[337779524,1726111772513,-500.0,0.00021917,2]
[337779525,1726111772535,-500.0,0.00021917,2]
[337779526,1726111772556,-500.0,0.00021917,2]
[337779527,1726111772577,-500.0,0.00021917,2]
[337779528,1726111772599,-865.24,0.00021917,2]
[337779529,1726111772620,-530.26,0.00021917,2]
[337779530,1726111772641,-501.1924522,0.00021917,2]
[337779531,1726111772661,-500.0,0.00021917,2]
[337779532,1726111772681,-500.0,0.00021917,2]
[337779533,1726111772702,-500.0,0.00021917,2]
[337779534,1726111772723,-500.0,0.00021917,2]
[337779535,1726111772743,-291.43371116,0.00021917,2]
[337779536,1726111772765,-500.0,0.00021917,2]
[337779537,1726111772786,-500.0,0.00021917,2]
[337779538,1726111772808,-508.8295679,0.00021917,2]
[337779539,1726111772833,-500.0,0.00021917,2]
[337779540,1726111772855,-500.0,0.00021917,2]
[337779541,1726111772878,-500.0,0.00021917,2]
[337779542,1726111772905,-500.0,0.00021917,2]
[337779543,1726111772926,-486.99396033,0.00021917,2]
[337779561,1726111832483,-267.89313081,0.00021817,2]
[337779562,1726111832495,-2420.87740179,0.00021817,2]
[337779563,1726111832504,-377.61138828,0.00021916,2]
[337779564,1726111832513,-300.0,0.00021916,2]
[337779565,1726111832522,-300.0,0.00021916,2]
[337779566,1726111832531,-13.00603967,0.00021917,2]
[337779567,1726111832540,-500.0,0.00021917,2]
[337779569,1726111832550,-500.0,0.00021917,2]
[337779570,1726111832561,-500.0,0.00021917,2]
[337779571,1726111832572,-500.87376402,0.00021917,2]
[337779572,1726111832582,-500.0,0.00021917,2]
[337779573,1726111832592,-500.0,0.00021917,2]
[337779574,1726111832602,-500.0,0.00021917,2]
[337779575,1726111832612,-500.0,0.00021917,2]
[337779576,1726111832621,-500.0,0.00021917,2]
[337779577,1726111832633,-385.56283484,0.00021917,2]
[337779578,1726111832647,-114.43716516,0.00021917,2]
[337779579,1726111832658,-500.0,0.00021917,2]
[337779580,1726111832667,-782.55,0.00021917,2]
[337779581,1726111832678,-501.82006168,0.00021917,2]
[337779582,1726111832690,-509.06,0.00021917,2]
[337779583,1726111832699,-27.65277316,0.00021917,2]
[337779584,1726111836492,225.40275078,0.00021,2]
[337779590,1726111838485,-25674.67838889,0.00021,2]
[337779593,1726111841435,-174.09001552,0.00021,2]
[337779594,1726111841688,-27101.44363302,0.00021,2]
[337779595,1726111841698,-500.0,0.00021916,2]
[337779596,1726111841708,-500.0,0.00021916,2]
[337779597,1726111841719,-579.18414571,0.00021916,2]
[337779598,1726111841729,-473.00106924,0.00021917,2]
[337779599,1726111841738,-1195.5,0.00021917,2]
[337779600,1726111841749,-500.0,0.00021917,2]
[337779601,1726111841759,-500.0,0.00021917,2]
[337779602,1726111841770,-500.0,0.00021917,2]
[337779603,1726111841780,-501.25665635,0.00021917,2]
[337779604,1726111841791,-500.0,0.00021917,2]
[337779605,1726111841801,-759.0,0.00021917,2]
[337779606,1726111841812,-500.0,0.00021917,2]
[337779607,1726111841823,-500.0,0.00021917,2]
[337779608,1726111841835,-500.0,0.00021917,2]
[337779609,1726111841844,-500.0,0.00021917,2]
[337779610,1726111841854,-504.886737,0.00021917,2]
[337779611,1726111841865,-500.0,0.00021917,2]
[337779612,1726111841875,-503.34619687,0.00021917,2]
[337779613,1726111841884,-500.0,0.00021917,2]
[337779614,1726111841893,-500.0,0.00021917,2]
[337779615,1726111841903,-631.5,0.00021917,2]
[337779616,1726111841913,-500.0,0.00021917,2]
[337779617,1726111841923,-500.0,0.00021917,2]
[337779618,1726111841932,-500.0,0.00021917,2]
[337779619,1726111841943,-500.61431952,0.00021917,2]
[337779620,1726111841953,-502.80020864,0.00021917,2]
[337779621,1726111841962,-500.0,0.00021917,2]
[337779622,1726111841974,-501.42777944,0.00021917,2]
[337779623,1726111841985,-500.0,0.00021917,2]
[337779624,1726111841996,-500.0,0.00021917,2]
[337779625,1726111842006,-500.0,0.00021917,2]
[337779626,1726111842015,-500.0,0.00021917,2]
[337779627,1726111842026,-500.0,0.00021917,2]
[337779628,1726111842036,-393.57278461,0.00021917,2]
[337779629,1726111842046,-500.0,0.00021917,2]
[337779630,1726111842058,-500.0,0.00021917,2]
[337779631,1726111842067,-500.0,0.00021917,2]
[337779632,1726111842077,-500.0,0.00021917,2]
[337779633,1726111842088,-500.0,0.00021917,2]
[337779634,1726111842100,-500.0,0.00021917,2]
[337779635,1726111842110,-500.0,0.00021917,2]
[337779636,1726111842121,-490.37470131,0.00021917,2]
[337779637,1726111842130,-500.0,0.00021917,2]
[337779638,1726111842140,-509.28939284,0.00021917,2]
[337779639,1726111842152,-500.0,0.00021917,2]
[337779640,1726111842162,-500.0,0.00021917,2]
[337779641,1726111842171,-184.57723403,0.00021917,2]
[337779642,1726111842182,-500.0,0.00021917,2]
[337779643,1726111842194,-500.0,0.00021917,2]
[337779644,1726111842204,-500.0,0.00021917,2]
[337779645,1726111842213,-501.04321213,0.00021917,2]
[337779646,1726111842223,-503.34334249,0.00021917,2]
[337779647,1726111842232,-500.0,0.00021917,2]
[337779648,1726111842241,-500.0,0.00021917,2]
[337779649,1726111842251,-500.0,0.00021917,2]
[337779650,1726111842261,-500.0,0.00021917,2]
[337779651,1726111842270,-151.0,0.00021917,2]
[337779652,1726111842279,-500.0,0.00021917,2]
[337779653,1726111842289,-844.45,0.00021917,2]
[337779654,1726111842298,-500.0,0.00021917,2]
[337779655,1726111842308,-502.57664126,0.00021917,2]
[337779656,1726111842318,-505.23582222,0.00021917,2]
[337779657,1726111842327,-500.0,0.00021917,2]
[337779658,1726111842338,-500.0,0.00021917,2]
[337779659,1726111842348,-500.0,0.00021917,2]
[337779660,1726111842358,-262.73228511,0.00021917,2]
[337779661,1726111842369,-500.0,0.00021917,2]
[337779662,1726111842378,-500.0,0.00021917,2]
[337779663,1726111842387,-510.32209435,0.00021917,2]
[337779664,1726111842397,-500.0,0.00021917,2]
[337779665,1726111842408,-500.0,0.00021917,2]
[337779666,1726111842419,-502.70032257,0.00021917,2]
[337779667,1726111842429,-500.0,0.00021917,2]
[337779668,1726111842438,-500.0,0.00021917,2]
[337779669,1726111842447,-500.0,0.00021917,2]
[337779670,1726111842457,-500.0,0.00021917,2]
[337779671,1726111842467,-507.2614601,0.00021917,2]
[337779672,1726111842475,-500.0,0.00021917,2]
[337779673,1726111842486,-441.3783437,0.00021917,2]
[337779674,1726111842497,-501.76966104,0.00021917,2]
[337779675,1726111842507,-500.0,0.00021917,2]
[337779676,1726111842518,-1437.06,0.00021917,2]
[337779677,1726111842529,-500.0,0.00021917,2]
[337779678,1726111842540,-500.0,0.00021917,2]
[337779679,1726111842551,-500.0,0.00021917,2]
[337779680,1726111842564,-500.0,0.00021917,2]
[337779681,1726111842573,-500.0,0.00021917,2]
[337779682,1726111842583,-500.0,0.00021917,2]
[337779683,1726111842593,-813.55,0.00021917,2]
[337779684,1726111842603,-500.0,0.00021917,2]
[337779685,1726111842612,-500.0,0.00021917,2]
[337779686,1726111842621,-483.26872439,0.00021917,2]
[337779687,1726111842630,-573.14,0.00021917,2]
[337779688,1726111842642,-508.43181856,0.00021917,2]
[337779689,1726111842652,-500.0,0.00021917,2]
[337779690,1726111842662,-507.6758269,0.00021917,2]
[337779691,1726111842672,-963.47,0.00021917,2]
[337779692,1726111842682,-500.0,0.00021917,2]
[337779693,1726111842692,-500.0,0.00021917,2]